Cogmind - Beta 16 *** ADVENTURER MODE // 2026.01.15 @ 12:35:31 Player: kullre Result: Self-destructed Performance ------------- Evolutions (1) 500 Regions Visited (2) 400 Robots Destroyed (25) 125 Value Destroyed (698) 698 Prototype IDs (0) 0 Alien Tech Used (0) 0 Bonus (0) 0 TOTAL SCORE: 1723 Bonus ------- None Cogmind --------- Core Integrity 276/400 Matter 388/450 Energy 94/100 System Corruption 2% Temperature Critical (595) Movement Core (200) Ox3 Location -9/Materials Parts ------- > --- POWER (1) -------- (None) > --- PROPULSION (2) --- (None) > --- UTILITY (4) ------ Large Matter Pod > --- WEAPON (2) ------- Particle Cannon Particle Cannon > --- INVENTORY (5) ---- Light Ion Engine Beam Rifle Heavy Assault Rifle Heavy Assault Rifle Grenade Launcher Peak State ------------ > --- POWER ------------ Improved Ion Engine > --- PROPULSION ------- Wheel > --- UTILITY ---------- Heat Sink Large Matter Pod > --- WEAPON ----------- Particle Cannon Particle Cannon > --- INVENTORY -------- Light Ion Engine Heavy Assault Rifle Heavy Assault Rifle Grenade Launcher [Rating: 9] Favorites ----------- Power Light Ion Engine Engine Light Ion Engine Propulsion Wheel Wheel Wheel Utility Large Matter Pod Device Heat Sink Storage Large Matter Pod Weapon Grenade Launcher Energy Cannon Particle Cannon Ballistic Gun Light Assault Rifle Launcher Grenade Launcher Build | -11 -10 -9 ------- Run | Yrd Mat Mat Slots Evolved 2 | . . 2 Power . | . . . Propulsion . | . . . Utility 2 | . . 2 Weapon . | . . . Parts Attached 12 | 5 2 5 Power 2 | 1 . 1 Engine 2 | 1 . 1 Core . | . . . Reactor . | . . . Propulsion 2 | 2 . . Treads . | . . . Leg . | . . . Wheel 2 | 2 . . Hover . | . . . Flight . | . . . Utility 2 | . 1 1 Device 1 | . . 1 Storage 1 | . 1 . Processor . | . . . Hackware . | . . . Protection . | . . . Artifact . | . . . Weapon 6 | 2 1 3 Energy Gun . | . . . Energy Cannon 2 | . . 2 Ballistic Gun 3 | 2 . 1 Ballistic Cannon . | . . . Launcher 1 | . 1 . Special Weapon . | . . . Impact Weapon . | . . . Slashing Weapon . | . . . Piercing Weapon . | . . . Special Melee Weapon . | . . . Unidentified Prototypes . | . . . Parts Lost 5 | . . 5 Power 1 | . . 1 Propulsion 2 | . . 2 Utility 1 | . . 1 Weapon 1 | . . 1 Highest Loss Streak 3 | . . 3 To Critical Strikes . | . . . Average Backups 2 | . 3 3 Power . | . . . Propulsion . | . . . Utility . | . . . Weapon 2 | . 3 3 Tool/Special . | . . . Unused Backups 2 | . 1 1 Power . | . . . Propulsion . | . . . Utility . | . . . Weapon 2 | . 1 1 Tool/Special . | . . . Average Slot Usage (%) 72 | . 80 59 Engine 12 | . 14 10 Wheel 22 | . 28 13 Device 2 | . . 5 Storage 10 | . 9 11 Energy Cannon 4 | . . 11 Ballistic Gun 10 | . 14 3 Launcher 9 | . 13 4 Peak Build Rating 9 | 5 6 9 Average Rating 5 | 2 5 6 On Entrance 3 | . 5 6 Avg Prop Armor Cover (%) . | . . . Naked Turns . | . . . Heaviest Build 19 | 6 10 19 Greatest Support 20 | 20 20 20 Greatest Overweight (x) 1 | . . 1 Average Overweight (x) . | . . . Largest Inventory Capacity 5 | 5 5 5 Average Capacity 5 | 5 5 5 Most Carried 5 | 5 5 5 Average Carried 3 | 1 3 3 Final Capacity 5 | 5 5 5 Final Carried 5 | . 3 5 Class Distribution -------------------- 100% | Mutant Dominant Class ---------------- Mutant | -10/Materials Mutant | -9/Materials Resources | -11 -10 -9 ----------- Run | Yrd Mat Mat Matter Collected 642 | 244 295 103 Remotely . | . . . Salvage Created 644 | . 174 470 Parts 45 | . 15 30 Haulers Intercepted 1 | . 1 . Recyclers Shooed 3 | 1 . 2 Parts Field Recycled . | . . . Retrieved Matter . | . . . Parts Self-Destructed . | . . . Prevented . | . . . Parts Restored . | . . . Kills | -11 -10 -9 ------- Run | Yrd Mat Mat Combat Hostiles Destroyed 17 | . 8 9 Guns 2 | . 1 1 Cannons 6 | . . 6 AOE 9 | . 7 2 Classes Destroyed 7 | . 4 3 Worker 2 | . . 2 Hauler 1 | . 1 . Recycler 1 | . . 1 Watcher 4 | . 2 2 Swarmer 3 | . 3 . Grunt 9 | . 5 4 Sentry 5 | . . 5 Best Kill Streak 6 | . 6 5 Combat Bots Only 5 | . 5 4 Max Kills in Single Turn 2 | . 2 2 Gunslinging . | . . . Exploded 2 | . 2 1 Melee . | . . . Uniques/NPCs Destroyed . | . . . Combat | -11 -10 -9 -------- Run | Yrd Mat Mat Hostile Shots Fired 72 | . 21 51 Missed 15 | . 7 8 Hits 57 | . 14 43 Projectile 57 | . 14 43 Critical Strikes 1 | . . 1 Damage Taken 736 | 4 183 549 Core 163 | . 39 124 Absorbed by Shields . | . . . Ignored by Resistances 215 | . 56 159 Core Remaining (%) 92 | 100 84 . Volleys Fired 40 | . 15 25 Largest 2 | . 2 2 Hottest 136 | . 50 136 Shots Fired 72 | . 26 46 Gun 20 | . 15 5 Cannon 35 | . . 35 Launcher 17 | . 11 6 Special . | . . . Kinetic 20 | . 15 5 Thermal 35 | . . 35 Explosive 17 | . 11 6 Electromagnetic . | . . . Robot Hit Streak 11 | . 11 10 Robot Miss Streak 3 | . 3 2 Penetration Max . | . . . Secondary Targets . | . . . Shots Hit Robots 52 | . 20 32 Core Hits 41 | . 20 21 Critical Kills . | . . . Critical Parts Destroyed 1 | . 1 . Critical Strikes 1 | . 1 . Destroy 1 | . 1 . Melee Attacks . | . . . Impact . | . . . Slashing . | . . . Piercing . | . . . Sneak Attacks . | . . . Combat Hostiles . | . . . Follow-up Attacks . | . . . Damage Inflicted 1762 | 8 821 933 Guns 129 | . 84 45 Cannons 493 | . . 493 Explosions 1128 | . 737 391 Melee . | . . . Ramming 12 | 8 . 4 Kinetic 129 | . 84 45 Thermal 493 | . . 493 Explosive 1128 | . 737 391 Electromagnetic . | . . . Impact . | . . . Slashing . | . . . Piercing . | . . . Highest Corruption 2 | . 1 2 Average Corruption 1 | . 1 2 Corruption Purged . | . . . Corruption Blocked . | . . . Effects 4 | . 2 2 Heat Flow Errors 1 | . . 1 Energy Discharges 1 | . 1 . Data Loss (major) 1 | . 1 . Weapon Failures 1 | . . 1 Overload Shots . | . . . Overflow Damage 45 | . 14 31 Projectiles . | . . . Explosions 45 | . 14 31 Melee . | . . . Knockbacks . | . . . Impact . | . . . Kinetic . | . . . Secondary . | . . . Self-Inflicted Damage 139 | 4 50 85 Shots 8 | . 4 4 Rammed 4 | 2 . 2 Targets Rammed 4 | 2 . 2 Kicked . | . . . Crushed . | . . . Highest Temperature 607 | . 19 607 Average Temperature 130 | . 11 170 Received Heat Transfer 300 | . 75 225 Effects 5 | . . 5 Shutdowns 1 | . . 1 Matter Decay 1 | . . 1 Short Circuit 1 | . . 1 Damage (minor) 1 | . . 1 Damage (major) 1 | . . 1 Siege Activations . | . . . Martial Activations . | . . . Shielding Activations . | . . . Robots Disrupted . | . . . Combat Hostiles . | . . . Robots Corrupted . | . . . Combat Hostiles . | . . . Parts Fried . | . . . Impact Corruptions . | . . . Robots Melted . | . . . Combat Hostiles . | . . . Parts Melted 1 | . . 1 Heat Transferred 888 | . . 888 Parts Sabotaged . | . . . Parts Stolen . | . . . Parts Stripped . | . . . Power Chain Reactions . | . . . Alert | -11 -10 -9 ------- Run | Yrd Mat Mat Maximum Alert Level 1 | . 1 1 Low Security (%) 82 | 100 76 86 Level 1 17 | . 23 13 Level 2 . | . . . Level 3 . | . . . Level 4 . | . . . Level 5 . | . . . High Security . | . . . Max Security . | . . . Peak Influence 261 | . 235 261 Initial 77 | . . 77 Average 100 | . 93 140 Influence Increases 626 | . 322 304 Destroy 0b10 Robot/C 340 | . 160 180 Destroy 0b10 Robot/NC 40 | . 15 25 Destroy Leader 100 | . 36 64 Disable Machine 45 | . 45 . Destroy Structure 101 | . 66 35 Influence Decreases 385 | . 107 278 Entered New Map 138 | . . 138 Time Decay 197 | . 107 90 Lost Part 50 | . . 50 Squads Dispatched 2 | . 1 1 Investigation 1 | . 1 . Extermination . | . . . Reinforcement 1 | . . 1 Assault . | . . . Garrison . | . . . Intercept . | . . . Searches Triggered . | . . . Construction Impeded . | . . . Haulers Reinforced . | . . . Active Scanning Responses . | . . . Cargo Convoy Interrupts . | . . . Stealth | -11 -10 -9 --------- Run | Yrd Mat Mat Distress Signals 1 | . . 1 Communications Jammed . | . . . Distress Signals . | . . . Times Spotted 25 | . 10 15 Peak Tracking Total 7 | . 3 7 Tactical Retreats . | . . . Traps | -11 -10 -9 ------- Run | Yrd Mat Mat Traps Triggered 2 | . 2 . Indirectly . | . . . Trap Hack Attempts . | . . . Triggered . | . . . Disarmed . | . . . Reprogrammed . | . . . Reused . | . . . Traps Extracted . | . . . Installed . | . . . Triggered . | . . . Machines | -11 -10 -9 ---------- Run | Yrd Mat Mat Machines Disabled 5 | . 5 . Max in Single Turn 2 | . 2 . Machines Repaired . | . . . Machines Dismantled . | . . . Machines Sabotaged . | . . . Overloaded Fab Kills . | . . . Hacking | -11 -10 -9 --------- Run | Yrd Mat Mat Machines Accessed 3 | . 3 . Terminals 1 | . 1 . Fabricators . | . . . Repair Stations . | . . . Recycling Units 2 | . 2 . Scanalyzers . | . . . Garrison Access . | . . . Total Hacks 10 | . 10 . Successful 5 | . 5 . Failed 5 | . 5 . Catastrophic . | . . . Database Lockouts . | . . . Manual 1 | . 1 . Terminals 2 | . 2 . Fabricators . | . . . Repair Stations . | . . . Recycling Units 8 | . 8 . Scanalyzers . | . . . Garrison Access . | . . . Terminal Hacks 1 | . 1 . Alert Level 1 | . 1 . Fabricator Hacks . | . . . Repair Station Hacks . | . . . Recycling Unit Hacks 4 | . 4 . Recycle Component 2 | . 2 . Process 1 | . 1 . Retrieve Matter 1 | . 1 . Scanalyzer . | . . . Garrison Access Hacks . | . . . Unauthorized Hacks . | . . . Terminals . | . . . Fabricators . | . . . Repair Stations . | . . . Recycling Units . | . . . Scanalyzers . | . . . Garrison Access . | . . . Data Cores Recovered . | . . . Used . | . . . Hacking Detections 3 | . 3 . Full Trace Events 2 | . 2 . Feedback Events . | . . . Feedback Blocked . | . . . Robot Schematics Acquired . | . . . Robots Built . | . . . Authchips . | . . . Time . | . . . Total Robot Build Rating . | . . . Part Schematics Acquired . | . . . Parts Built . | . . . Authchips . | . . . Time . | . . . Total Part Build Rating . | . . . Part Studies Acquired . | . . . Parts Repaired . | . . . Time . | . . . Parts Recycled 2 | . 2 . Recycled Matter 131 | . 131 . Retrieved Matter . | . . . Retrieved Components . | . . . Parts Scanalyzed . | . . . Part Schematics Acquired . | . . . Parts Damaged . | . . . Bothacking | -11 -10 -9 ------------ Run | Yrd Mat Mat Used RIF Installer . | . . . Robots Hacked . | . . . Non-combat . | . . . Combat . | . . . Robot Hacks Applied . | . . . Relay Couplers Released . | . . . Fabnet Peak Effective % . | . . . Robots Rewired . | . . . Allies Hacked . | . . . Hacks Repelled . | . . . Allies | -11 -10 -9 -------- Run | Yrd Mat Mat Total Allies . | . . . Largest Group . | . . . Highest-Rated Group . | . . . Highest-Rated Ally . | . . . Total Orders . | . . . Ally Attacks . | . . . Total Damage . | . . . Kills . | . . . Allies Corrupted . | . . . Allies Melted . | . . . Intel | -11 -10 -9 ------- Run | Yrd Mat Mat Active Infowar (turns) . | . . . Robot Analysis Total . | . . . Derelict Logs Recovered . | . . . Drone Launches . | . . . Drone Recoveries . | . . . Exploration | -11 -10 -9 ------------- Run | Yrd Mat Mat Turns Passed 543 | 57 293 193 Spaces Moved 506 | 71 309 126 Core 45 | 45 . . Treads . | . . . Legs . | . . . Wheels 461 | 26 309 126 Hover . | . . . Flight . | . . . Fastest Speed 50 | 50 80 80 Average Speed 78 | 60 80 86 Slowest Speed 95 | 80 80 95 Overloaded Moves . | . . . Propulsion Burnouts . | . . . Robots Hopped . | . . . Potential Cave-ins . | . . . Cave-ins Triggered . | . . . Exploration Rate (%) 19 | 3 40 14 Regions Visited 2 Branch Regions . Pre-discovered Areas . | . . . Known Exits Taken . | . . . Unknown Exits Taken 2 | 1 1 . Scrap Searched . | . . . Spaces Dug . | . . . Terrain Destroyed 97 | . 65 32 Melee . | . . . Projectile . | . . . AOE 97 | . 65 32 Terrain Rammed . | . . . Walls Destroyed . | . . . Machines Disabled . | . . . Actions | -11 -10 -9 --------- Run | Yrd Mat Mat Total 577 | 84 331 162 Wait . | . . . Move 504 | 70 308 126 Hop . | . . . Pick Up 16 | 6 6 4 Fast Attach . | . . . Attach 8 | 5 1 2 Detach . | . . . Swap 4 | . 1 3 Drop 1 | 1 . . Fire 40 | . 15 25 Melee . | . . . Ram 4 | 2 . 2 Kick . | . . . Crush . | . . . Escape Stasis . | . . . Rewire . | . . . Trap . | . . . Miscellaneous . | . . . Route ------- -11/Scrapyard -10/Materials -9/Materials (discovered 1 exit: [*Min]) History --------- Turn | Location | Event 4 | -11/Scrapyard | Discovered new exit (range 15) 58 | -11/Scrapyard | Entered Materials 247 | -10/Materials | Discovered new exit (range 10) 306 | -10/Materials | Build established: Mutant 351 | -10/Materials | Entered another Materials area 351 | -9/Materials | Evolved 2 slots: Utility x2 465 | -9/Materials | Discovered new exit (range 8) 544 | -9/Materials | Self-destructed Last Messages --------------- W-16 Scout destroyed. Y-45 Defender destroyed. Wheel destroyed. Y-45 Defender destroyed. G-34 Mercenary destroyed. Power failure, Imp. Ion Engine shutdown. System corrupted: Heat flow error (+170). G-34 Mercenary destroyed. [Achievement: Well Done] Overheating: Heat Sink damaged (-1). Critical hit (Burn: +37). K-01 Serf collects debris. System corrupted: Particle Cannon failed to cycle. Imp. Ion Engine destroyed. Particle Cannon broken. Overheating: Short circuit. Overheating: Lrg. Matter Pod damaged (-11). Overheating: Matter decay (-67). Heat Sink destroyed. Map ----- +----------------------------------------------------+ | ?????????????????????????????????????????????????? | | ?????????????????????????????????????????????????? | | ?????????????????????????????????????????????????? | | ?????????????????????????????????????????????????? | | ?????????????????????????????????????????????????? | | ?????????????????????????????????????????????????? | | ?????????????????????????????????????????????????? | | ?????????????????????????????????????????????????? | | ?????????????????????????????????????????????????? | | ?????????????????????????????????????????????????? | | ???????????????????????# #?????????????????????? | | ??????????????????????? ?????????????????????? | | ??????????????????????? ?????????????????????? | | ??????????????????????? ?????????????????????? | | ??????????????????????? a ?????????????????????? | | ??????????????????????? r ![?????????????????????? | | ???????????????????????# w%#?????????????????????? | | ???????????????????????#=%*#?????????????????????? | | ????????????? ?????????# g[#????????????????###### | | ?????????????? ???????#[%[#????????????????? | | ???????????????? ????## = ##????????????????? | | ?????????????????#+#### #?????????????????? | | ?????????????????#=%! #???????????????????# | | ?????????????????+ %[ #???##########??????# | | ?????????????????# #???# #####??# | | ??????????????????????# @k #???# """ # #### | | ??????????????????????### ###???# """ # | | ????????????????????????#!#?????# """ + | | ???????????????????????##%##????# # | | ???????????????????????# !!###### *] # ## | | ???????????????????????#[<%*! = + # | | ???????????????????????# [=###### " | | ???????????????????????#####????# # """ | | ????????????????????????????????###### ## """ | | ?????????????????????????????????????###### """ | | ??????????????????????????????????????????# "" | | ??????????????????????????????????????????# """## | | ??????????????????????????????????????????# ""#? | | ??????????????????????????????????????????#! """#? | | ??????????????????????????????????????????# " #? | | ??????????????????????????????????????????#* #? | | ??????????????????????????????????????????# #? | | ??????????????????????????????????????????#######? | | ?????????????????????????????????????????????????? | | ?????????????????????????????????????????????????? | | ?????????????????????????????????????????????????? | | ?????????????????????????????????????????????????? | | ?????????????????????????????????????????????????? | | | | | +----------------------------------------------------+ Best States ------------- Heat Dissipation 38 Energy Generation 12 Energy Capacity 265 Matter Stores 450 Matter Capacity 450 Sight Range 16 Terrain Scan Density 10 Resistance: KI 20 Resistance: TH 20 Resistance: EX 20 Resistance: EM 20 Resistance: I 20 Resistance: S 20 Resistance: P 20 Evasion (%) 50 Offensive Hacking 10 Item Schematics ----------------- None Robot Schematics ------------------ None Fabricated ------------ Nothing Repaired ---------- Nothing Studied --------- None Alien Tech Used ----------------- None Achievements -------------- Well Done Challenges ------------ None Game ------ Seed CargoIonicArticulator Manual? 0 Play Time 00:10:57 Cumulative 3.0 hours Start 2026.01.15 @ 12:27:28 End 2026.01.15 @ 12:35:31 Sessions 1 Manual Loads 0 Difficulty Adventurer Special Mode None Game No. 9 Rogue 0 Adventurer 9 Explorer 0 Win Type - Total 0 Types 0/0/0/0/0/0/0/0/0/0 Lore% 2 Gallery% 5 Achievement% 6 Wizard Run 0 Options --------- Layout 1 ASCII 0 Keyboard 0 Movement Arrows Keybinds 0 Fullscreen 1 Font 24/Smallcaps Map View 50x35 Zoom Use 0% Tactical HUD 0 Map Filters NONE Filters NONE Steam 1 RUN: b8a71551-ab16-4e83-9788-ca82489a9f55